[Event "GrandPrix_30.05"]
[Site "Chess.com"]
[Date "2020.05.30"]
[Round "2"]
[White "tsaruk_maks"]
[Black "kirillshevchenko"]
[Result "1-0"]
[WhiteElo "2396"]
[BlackElo "2682"]
[TimeControl "600+2"]
[EndTime "8:50:06 PDT"]
[Termination "tsaruk_maks won by resignation"]

1. e4 {[%clk 0:10:01.9]} 1... c5 {[%clk 0:10:00.1]} 2. Nf3 {[%clk 0:10:03.1]}
2... d6 {[%clk 0:10:00.7]} 3. d4 {[%clk 0:10:04.7]} 3... cxd4 {[%clk 0:10:02.6]}
4. Nxd4 {[%clk 0:10:06.5]} 4... Nf6 {[%clk 0:10:04]} 5. Nc3 {[%clk 0:10:08]}
5... a6 {[%clk 0:10:05.4]} 6. g3 {[%clk 0:10:09.3]} 6... e5 {[%clk 0:10:05.9]}
7. Nb3 {[%clk 0:10:11]} 7... Be7 {[%clk 0:10:01.1]} 8. Bg2 {[%clk 0:10:12.2]}
8... b5 {[%clk 0:09:55.1]} 9. O-O {[%clk 0:10:12.6]} 9... O-O {[%clk 0:09:51.8]}
10. a4 {[%clk 0:10:07.7]} 10... b4 {[%clk 0:09:49.3]} 11. Nd5 {[%clk 0:10:09.1]}
11... Nxd5 {[%clk 0:09:44.4]} 12. Qxd5 {[%clk 0:10:04.2]} 12... Ra7 {[%clk
0:09:45.2]} 13. Be3 {[%clk 0:09:42.4]} 13... Be6 {[%clk 0:09:42.6]} 14. Qd3
{[%clk 0:09:43.6]} 14... Rb7 {[%clk 0:08:52.3]} 15. Rfc1 {[%clk 0:09:06.7]}
15... Qc7 {[%clk 0:08:07.1]} 16. c3 {[%clk 0:07:33.8]} 16... Nc6 {[%clk
0:07:34.4]} 17. cxb4 {[%clk 0:07:29.4]} 17... Rxb4 {[%clk 0:07:00.9]} 18. Qxa6
{[%clk 0:07:29]} 18... Rc8 {[%clk 0:06:06.3]} 19. Na5 {[%clk 0:06:52.7]} 19...
Qxa5 {[%clk 0:06:01.4]} 20. Rxc6 {[%clk 0:06:52.7]} 20... Qxa6 {[%clk
0:05:09.2]} 21. Rxa6 {[%clk 0:06:54.6]} 21... Rxb2 {[%clk 0:05:10.8]} 22. a5
{[%clk 0:06:29.8]} 22... Rbb8 {[%clk 0:02:12.9]} 23. Ra7 {[%clk 0:05:44.3]}
23... Bd8 {[%clk 0:02:09]} 24. a6 {[%clk 0:05:30.3]} 24... h6 {[%clk 0:00:51.4]}
25. h4 {[%clk 0:05:31.6]} 25... Kh7 {[%clk 0:00:31.6]} 26. Rb7 {[%clk
0:04:55.7]} 26... Ra8 {[%clk 0:00:18.8]} 27. a7 {[%clk 0:04:55.6]} 27... Bc4
{[%clk 0:00:12.9]} 28. Bf1 {[%clk 0:04:54.7]} 28... d5 {[%clk 0:00:12.3]} 29.
Bxc4 {[%clk 0:04:47.5]} 29... dxc4 {[%clk 0:00:14.2]} 30. Rxf7 {[%clk
0:04:39.2]} 30... Rc6 {[%clk 0:00:14.6]} 31. Rb7 {[%clk 0:04:13.7]} 31... Bc7
{[%clk 0:00:15.5]} 32. Rd1 {[%clk 0:04:15.4]} 32... c3 {[%clk 0:00:04.3]} 33.
Rd7 {[%clk 0:04:16.8]} 33... Ba5 {[%clk 0:00:02.4]} 34. Rxg7+ {[%clk 0:04:05.4]}
34... Kh8 {[%clk 0:00:03.3]} 35. Rb8+ {[%clk 0:04:06.9]} 35... Kxg7 {[%clk
0:00:03.9]} 36. Rxa8 {[%clk 0:04:08.5]} 36... Ra6 {[%clk 0:00:02.6]} 37. Re8
{[%clk 0:04:10.1]} 37... c2 {[%clk 0:00:02.8]} 38. a8=Q {[%clk 0:04:10.6]} 38...
Rxa8 {[%clk 0:00:03.5]} 39. Rxa8 {[%clk 0:04:12.5]} 1-0

[Event "GrandPrix_30.05"]
[Site "Chess.com"]
[Date "2020.05.30"]
[Round "2"]
[White "VolodymyrMolyboha"]
[Black "SergeyVashchilov"]
[Result "1-0"]
[WhiteElo "2245"]
[BlackElo "2062"]
[TimeControl "600+2"]
[EndTime "8:50:15 PDT"]
[Termination "VolodymyrMolyboha won on time"]

1. e4 {[%clk 0:10:01.9]} 1... e6 {[%clk 0:10:00.7]} 2. d4 {[%clk 0:10:02.4]}
2... d5 {[%clk 0:10:01.6]} 3. e5 {[%clk 0:10:03.5]} 3... c5 {[%clk 0:10:01.8]}
4. Qg4 {[%clk 0:10:04.6]} 4... Nc6 {[%clk 0:09:54.9]} 5. Nf3 {[%clk 0:10:05.2]}
5... Nge7 {[%clk 0:09:10.3]} 6. Bd3 {[%clk 0:10:00.8]} 6... Nb4 {[%clk
0:09:02.7]} 7. dxc5 {[%clk 0:09:57.2]} 7... Qa5 {[%clk 0:08:36.5]} 8. O-O {[%clk
0:09:39.6]} 8... Nxd3 {[%clk 0:08:34.5]} 9. cxd3 {[%clk 0:09:39.1]} 9... Qxc5
{[%clk 0:08:35.3]} 10. Nc3 {[%clk 0:09:37.9]} 10... Nf5 {[%clk 0:08:13.7]} 11.
a3 {[%clk 0:09:32.3]} 11... Bd7 {[%clk 0:08:02.2]} 12. Qf4 {[%clk 0:09:06.3]}
12... h6 {[%clk 0:07:43.2]} 13. Be3 {[%clk 0:08:51.4]} 13... Nxe3 {[%clk
0:05:53.5]} 14. fxe3 {[%clk 0:08:44.9]} 14... Be7 {[%clk 0:05:44.7]} 15. d4
{[%clk 0:08:10.7]} 15... Qb6 {[%clk 0:05:34.4]} 16. Rf2 {[%clk 0:08:08.6]} 16...
O-O {[%clk 0:05:10.6]} 17. Qg4 {[%clk 0:08:03.5]} 17... Rac8 {[%clk 0:04:49.4]}
18. Nxd5 {[%clk 0:07:52.7]} 18... Qd8 {[%clk 0:04:36.5]} 19. Nf4 {[%clk
0:07:15.8]} 19... Kh7 {[%clk 0:04:01]} 20. Nh5 {[%clk 0:07:03.6]} 20... g6
{[%clk 0:04:01.5]} 21. Ng3 {[%clk 0:06:53.3]} 21... Rc4 {[%clk 0:03:03.2]} 22.
Raf1 {[%clk 0:06:41.7]} 22... Be8 {[%clk 0:02:28.7]} 23. h4 {[%clk 0:06:17.3]}
23... Rg8 {[%clk 0:01:59.1]} 24. Ne4 {[%clk 0:05:57.1]} 24... Rg7 {[%clk
0:01:04.6]} 25. Qf4 {[%clk 0:05:04]} 25... Bc6 {[%clk 0:00:51.8]} 26. Nf6+
{[%clk 0:04:00.8]} 26... Bxf6 {[%clk 0:00:52.7]} 27. exf6 {[%clk 0:04:01.4]}
27... Rg8 {[%clk 0:00:24.9]} 28. Ne5 {[%clk 0:03:59.3]} 28... Bb5 {[%clk
0:00:12.1]} 29. Nxf7 {[%clk 0:03:49.2]} 29... Qf8 {[%clk 0:00:12.9]} 30. Nd6
{[%clk 0:03:34.7]} 30... g5 {[%clk 0:00:03.6]} 31. Qe4+ {[%clk 0:03:32.1]} 1-0

[Event "GrandPrix_30.05"]
[Site "Chess.com"]
[Date "2020.05.30"]
[Round "2"]
[White "ChessQueen"]
[Black "GMMarcinDziuba"]
[Result "0-1"]
[WhiteElo "2179"]
[BlackElo "2545"]
[TimeControl "600+2"]
[EndTime "8:50:16 PDT"]
[Termination "GMMarcinDziuba won by resignation"]

1. e4 {[%clk 0:10:01.9]} 1... c6 {[%clk 0:09:59.4]} 2. c4 {[%clk 0:09:58.9]}
2... d5 {[%clk 0:09:56]} 3. cxd5 {[%clk 0:10:00]} 3... cxd5 {[%clk 0:09:56.9]}
4. exd5 {[%clk 0:10:01.3]} 4... Nf6 {[%clk 0:09:57]} 5. Nc3 {[%clk 0:10:02.1]}
5... Nxd5 {[%clk 0:09:57.3]} 6. Nf3 {[%clk 0:10:03.3]} 6... Nxc3 {[%clk
0:09:57.2]} 7. bxc3 {[%clk 0:10:03.9]} 7... g6 {[%clk 0:09:58.4]} 8. Bb5+ {[%clk
0:09:54.3]} 8... Nd7 {[%clk 0:09:31.8]} 9. O-O {[%clk 0:09:50.2]} 9... Bg7
{[%clk 0:09:32.4]} 10. a4 {[%clk 0:09:42.9]} 10... O-O {[%clk 0:09:32.4]} 11.
Ba3 {[%clk 0:09:43.9]} 11... Re8 {[%clk 0:09:20.9]} 12. Qb3 {[%clk 0:09:20.9]}
12... a6 {[%clk 0:08:52]} 13. Bc4 {[%clk 0:09:11.2]} 13... e6 {[%clk 0:08:53.1]}
14. d4 {[%clk 0:09:05]} 14... Qc7 {[%clk 0:08:45.5]} 15. Rfb1 {[%clk 0:08:23.3]}
15... b6 {[%clk 0:08:42.6]} 16. d5 {[%clk 0:06:50.7]} 16... Nc5 {[%clk 0:08:06]}
17. Bxc5 {[%clk 0:05:45.2]} 17... Qxc5 {[%clk 0:07:59.6]} 18. Nd4 {[%clk
0:05:44.4]} 18... Bxd4 {[%clk 0:07:28]} 19. cxd4 {[%clk 0:05:45.1]} 19... Qxd4
{[%clk 0:07:29.1]} 20. Rd1 {[%clk 0:05:45.7]} 20... Qf4 {[%clk 0:07:04]} 21. g3
{[%clk 0:04:44]} 21... Qg4 {[%clk 0:06:58.6]} 22. f3 {[%clk 0:04:00.5]} 22...
Qf5 {[%clk 0:06:35]} 23. Qxb6 {[%clk 0:03:51.7]} 23... Qxf3 {[%clk 0:06:13.8]}
24. Rf1 {[%clk 0:03:35.8]} 24... Qe4 {[%clk 0:06:10.3]} 25. Qc6 {[%clk
0:03:01.4]} 25... exd5 {[%clk 0:04:12.5]} 26. Bxd5 {[%clk 0:02:11.9]} 26... Qe3+
{[%clk 0:03:40.4]} 27. Kh1 {[%clk 0:02:12.7]} 27... Be6 {[%clk 0:03:41.4]} 28.
Rae1 {[%clk 0:02:02.9]} 28... Qxe1 {[%clk 0:03:38.1]} 29. Rxe1 {[%clk
0:02:03.4]} 29... Bxd5+ {[%clk 0:03:39.3]} 30. Qxd5 {[%clk 0:02:04.8]} 30...
Rxe1+ {[%clk 0:03:40.1]} 31. Kg2 {[%clk 0:02:06.4]} 31... Rae8 {[%clk
0:03:40.8]} 32. Qc6 {[%clk 0:02:03.4]} 32... R1e6 {[%clk 0:03:34]} 33. Qb7
{[%clk 0:02:00.5]} 33... h5 {[%clk 0:03:25.1]} 34. Kf3 {[%clk 0:01:55.3]} 34...
Rf6+ {[%clk 0:03:26.1]} 35. Kg2 {[%clk 0:01:55]} 35... Ree6 {[%clk 0:03:27.1]}
36. Qb2 {[%clk 0:01:53.1]} 36... Rf5 {[%clk 0:03:19.4]} 37. Qd2 {[%clk
0:01:48.1]} 37... Ref6 {[%clk 0:03:15.5]} 38. Qd8+ {[%clk 0:01:46.8]} 38... Kh7
{[%clk 0:03:14.2]} 39. h4 {[%clk 0:01:37.6]} 39... Rf2+ {[%clk 0:03:01.8]} 40.
Kh3 {[%clk 0:01:37.9]} 40... R6f5 {[%clk 0:03:03]} 41. Qd4 {[%clk 0:01:28]}
41... Ra2 {[%clk 0:02:57.2]} 42. Qc4 {[%clk 0:01:28.4]} 42... Rff2 {[%clk
0:02:56.2]} 0-1

[Event "GrandPrix_30.05"]
[Site "Chess.com"]
[Date "2020.05.30"]
[Round "2"]
[White "vpantev"]
[Black "viktorskliarov"]
[Result "1/2-1/2"]
[WhiteElo "2681"]
[BlackElo "2226"]
[TimeControl "600+2"]
[EndTime "8:50:27 PDT"]
[Termination "Game drawn by agreement"]

1. d4 {[%clk 0:09:58.2]} 1... Nf6 {[%clk 0:10:00.7]} 2. Nf3 {[%clk 0:09:57.1]}
2... g6 {[%clk 0:10:01.4]} 3. Bf4 {[%clk 0:09:57.5]} 3... Bg7 {[%clk 0:10:02.6]}
4. e3 {[%clk 0:09:58.4]} 4... O-O {[%clk 0:10:02.3]} 5. Be2 {[%clk 0:09:58.8]}
5... d6 {[%clk 0:10:03.6]} 6. c4 {[%clk 0:09:53]} 6... c5 {[%clk 0:09:04.2]} 7.
d5 {[%clk 0:09:31.8]} 7... Nh5 {[%clk 0:08:59.4]} 8. Nc3 {[%clk 0:09:31.1]} 8...
Nxf4 {[%clk 0:08:47.7]} 9. exf4 {[%clk 0:09:31.8]} 9... a6 {[%clk 0:08:49.2]}
10. a4 {[%clk 0:09:30.1]} 10... Bg4 {[%clk 0:08:42.9]} 11. O-O {[%clk 0:09:21]}
11... Nd7 {[%clk 0:08:41]} 12. Qc2 {[%clk 0:09:12.4]} 12... Qa5 {[%clk
0:08:10.2]} 13. Ra3 {[%clk 0:08:50.7]} 13... Rab8 {[%clk 0:08:00.4]} 14. h3
{[%clk 0:07:55.4]} 14... Bxf3 {[%clk 0:07:52.7]} 15. Bxf3 {[%clk 0:07:55.6]}
15... Nb6 {[%clk 0:07:10.3]} 16. Ne4 {[%clk 0:05:45.8]} 16... Qb4 {[%clk
0:06:42.5]} 17. Be2 {[%clk 0:03:57.4]} 17... Qxb2 {[%clk 0:04:21.8]} 18. Qxb2
{[%clk 0:03:11]} 18... Bxb2 {[%clk 0:04:23.7]} 19. Ra2 {[%clk 0:02:15.6]} 19...
Bd4 {[%clk 0:04:12.4]} 20. a5 {[%clk 0:02:05.9]} 20... Nd7 {[%clk 0:04:03.2]}
21. Rb1 {[%clk 0:02:05.5]} 21... Kg7 {[%clk 0:01:57.3]} 22. Ra3 {[%clk
0:01:56.9]} 22... Nf6 {[%clk 0:01:43.3]} 23. Nxf6 {[%clk 0:01:43.6]} 23... Kxf6
{[%clk 0:01:43.9]} 24. Rab3 {[%clk 0:01:42.6]} 24... h5 {[%clk 0:01:43.7]} 25.
h4 {[%clk 0:01:37.6]} 25... Rfe8 {[%clk 0:01:21.2]} 1/2-1/2

[Event "GrandPrix_30.05"]
[Site "Chess.com"]
[Date "2020.05.30"]
[Round "2"]
[White "Fandorine"]
[Black "Sakkcapak"]
[Result "1-0"]
[WhiteElo "2527"]
[BlackElo "2145"]
[TimeControl "600+2"]
[EndTime "8:50:35 PDT"]
[Termination "Fandorine won by resignation"]

1. e4 {[%clk 0:10:01.9]} 1... e6 {[%clk 0:09:59.8]} 2. d4 {[%clk 0:10:00.5]}
2... d5 {[%clk 0:09:59.7]} 3. Nc3 {[%clk 0:10:01.8]} 3... Nf6 {[%clk 0:10:00.2]}
4. e5 {[%clk 0:10:00.7]} 4... Nfd7 {[%clk 0:10:01.2]} 5. f4 {[%clk 0:10:02.3]}
5... c5 {[%clk 0:10:02.1]} 6. Nce2 {[%clk 0:10:03.9]} 6... Nc6 {[%clk
0:10:01.2]} 7. c3 {[%clk 0:10:04.1]} 7... Qb6 {[%clk 0:10:01.4]} 8. Nf3 {[%clk
0:10:04.1]} 8... f6 {[%clk 0:10:00.8]} 9. Qb3 {[%clk 0:09:20.7]} 9... c4 {[%clk
0:09:53.2]} 10. Qc2 {[%clk 0:09:19.8]} 10... Be7 {[%clk 0:09:35.7]} 11. exf6
{[%clk 0:08:48.4]} 11... gxf6 {[%clk 0:09:15.8]} 12. g3 {[%clk 0:07:39.3]} 12...
Nf8 {[%clk 0:09:11]} 13. Bg2 {[%clk 0:07:33.5]} 13... Bd7 {[%clk 0:09:10.1]} 14.
Be3 {[%clk 0:07:31.7]} 14... O-O-O {[%clk 0:09:08.7]} 15. Bf2 {[%clk 0:07:29.7]}
15... Be8 {[%clk 0:08:36]} 16. f5 {[%clk 0:07:22.3]} 16... Kb8 {[%clk
0:08:18.2]} 17. O-O {[%clk 0:07:20.7]} 17... exf5 {[%clk 0:07:48.1]} 18. Nh4
{[%clk 0:07:20.1]} 18... Bg6 {[%clk 0:07:41.8]} 19. Nf4 {[%clk 0:07:16.8]} 19...
Qa5 {[%clk 0:06:52.3]} 20. b3 {[%clk 0:07:03.1]} 20... Bd6 {[%clk 0:05:50.7]}
21. Nxd5 {[%clk 0:06:09.3]} 21... f4 {[%clk 0:05:27.8]} 22. Nxg6 {[%clk
0:06:09.4]} 22... Nxg6 {[%clk 0:05:29.4]} 23. bxc4 {[%clk 0:06:10.2]} 23... fxg3
{[%clk 0:05:15.5]} 24. Bxg3 {[%clk 0:06:06.2]} 24... Bxg3 {[%clk 0:04:50.6]} 25.
hxg3 {[%clk 0:06:08.1]} 25... Qa6 {[%clk 0:04:43.1]} 26. c5 {[%clk 0:05:17.2]}
26... Qc4 {[%clk 0:04:03.5]} 27. Qb3 {[%clk 0:05:16.3]} 27... Qd3 {[%clk
0:03:44.6]} 28. Rab1 {[%clk 0:05:14.1]} 28... Rd7 {[%clk 0:02:46]} 29. Rf3
{[%clk 0:04:56]} 29... Qd2 {[%clk 0:02:08.3]} 30. Nxf6 {[%clk 0:04:44.8]} 30...
Rg7 {[%clk 0:01:45.9]} 31. Ne4 {[%clk 0:03:45.9]} 31... Qe2 {[%clk 0:01:23.7]}
32. Rf7 {[%clk 0:03:34.4]} 32... Rxf7 {[%clk 0:01:04.9]} 33. Qxf7 {[%clk
0:03:34.3]} 33... Nge7 {[%clk 0:00:46.8]} 34. Nd6 {[%clk 0:03:32.1]} 34... Qe3+
{[%clk 0:00:46.5]} 35. Qf2 {[%clk 0:03:32]} 35... Qxf2+ {[%clk 0:00:44.4]} 36.
Kxf2 {[%clk 0:03:33.9]} 36... b6 {[%clk 0:00:39.7]} 37. cxb6 {[%clk 0:03:31.2]}
37... axb6 {[%clk 0:00:41.6]} 38. Nc4 {[%clk 0:03:31.4]} 38... Kc7 {[%clk
0:00:41]} 39. d5 {[%clk 0:03:31.5]} 39... Rf8+ {[%clk 0:00:29.6]} 40. Kg1 {[%clk
0:03:32.3]} 1-0

[Event "GrandPrix_30.05"]
[Site "Chess.com"]
[Date "2020.05.30"]
[Round "2"]
[White "lelajavakhishvili"]
[Black "SpasKozhuharov"]
[Result "0-1"]
[WhiteElo "2174"]
[BlackElo "2137"]
[TimeControl "600+2"]
[EndTime "8:50:35 PDT"]
[Termination "SpasKozhuharov won by resignation"]

1. d4 {[%clk 0:10:01.9]} 1... d5 {[%clk 0:09:57]} 2. c4 {[%clk 0:09:59.6]} 2...
dxc4 {[%clk 0:09:56.8]} 3. e4 {[%clk 0:09:57.4]} 3... Nc6 {[%clk 0:09:56.5]} 4.
Nf3 {[%clk 0:09:40.2]} 4... Bg4 {[%clk 0:09:48.7]} 5. Be3 {[%clk 0:09:33.1]}
5... Bxf3 {[%clk 0:09:48.4]} 6. gxf3 {[%clk 0:09:33.4]} 6... e6 {[%clk
0:09:49.9]} 7. Bxc4 {[%clk 0:09:32.7]} 7... Qf6 {[%clk 0:09:51.4]} 8. Bb5 {[%clk
0:09:07.1]} 8... Bb4+ {[%clk 0:09:50]} 9. Nc3 {[%clk 0:09:06.9]} 9... Ne7 {[%clk
0:09:51.3]} 10. a3 {[%clk 0:08:59]} 10... Ba5 {[%clk 0:09:51.5]} 11. Qe2 {[%clk
0:07:37.6]} 11... O-O-O {[%clk 0:09:47.9]} 12. e5 {[%clk 0:06:58.6]} 12... Qh4
{[%clk 0:09:46.2]} 13. O-O-O {[%clk 0:06:48.7]} 13... Nxd4 {[%clk 0:09:43.6]}
14. Rxd4 {[%clk 0:05:16.7]} 14... Rxd4 {[%clk 0:09:45.5]} 15. Ne4 {[%clk
0:05:17.8]} 15... Rxe4 {[%clk 0:09:35.9]} 16. fxe4 {[%clk 0:05:17.7]} 16... Qxe4
{[%clk 0:09:32]} 17. Rd1 {[%clk 0:05:18.1]} 17... Nd5 {[%clk 0:09:19.7]} 18.
Bxa7 {[%clk 0:05:01.4]} 18... Qxe2 {[%clk 0:09:05.6]} 19. Bxe2 {[%clk
0:05:01.2]} 19... Bb6 {[%clk 0:08:42.5]} 20. Bxb6 {[%clk 0:04:56.5]} 20... Nxb6
{[%clk 0:08:43.9]} 21. Rd3 {[%clk 0:04:23.2]} 21... Rd8 {[%clk 0:08:16.6]} 22.
Rh3 {[%clk 0:04:14.5]} 22... h6 {[%clk 0:08:07.7]} 23. Rg3 {[%clk 0:04:15.2]}
23... g6 {[%clk 0:08:06.7]} 24. Rf3 {[%clk 0:03:54.2]} 24... Rd7 {[%clk
0:08:05.4]} 25. Kc2 {[%clk 0:03:31.8]} 25... Kd8 {[%clk 0:08:05.3]} 26. Bb5
{[%clk 0:03:23.8]} 26... c6 {[%clk 0:08:04.5]} 27. Bd3 {[%clk 0:03:16.5]} 27...
Ke7 {[%clk 0:08:03.2]} 28. Rf4 {[%clk 0:03:07.5]} 28... c5 {[%clk 0:07:38.2]}
29. Re4 {[%clk 0:02:41.6]} 29... g5 {[%clk 0:07:27.3]} 30. h4 {[%clk 0:02:35.6]}
30... Rd5 {[%clk 0:07:26.9]} 31. hxg5 {[%clk 0:02:02.1]} 31... hxg5 {[%clk
0:07:28.8]} 32. Bb5 {[%clk 0:02:02.3]} 32... Rd8 {[%clk 0:06:33.9]} 33. Rg4
{[%clk 0:01:58]} 33... Rh8 {[%clk 0:06:10.4]} 34. Rxg5 {[%clk 0:01:48.7]} 34...
Rh2 {[%clk 0:06:06.3]} 35. Rg8 {[%clk 0:01:45.5]} 35... Rxf2+ {[%clk 0:06:05.8]}
36. Kb3 {[%clk 0:01:41.8]} 36... Rf3+ {[%clk 0:06:04]} 37. Kc2 {[%clk
0:01:35.2]} 37... Nd7 {[%clk 0:06:01.8]} 38. Rc8 {[%clk 0:01:10.9]} 38... Nxe5
{[%clk 0:05:55]} 39. Rc7+ {[%clk 0:01:03.4]} 39... Kd6 {[%clk 0:05:56]} 40. Rxb7
{[%clk 0:01:03.4]} 40... f5 {[%clk 0:05:56.4]} 41. a4 {[%clk 0:00:58.3]} 41...
f4 {[%clk 0:05:55.5]} 42. a5 {[%clk 0:00:58.3]} 42... Rg3 {[%clk 0:05:39.2]} 43.
a6 {[%clk 0:00:59]} 43... Rg8 {[%clk 0:05:39.8]} 44. a7 {[%clk 0:00:46.8]} 44...
Ra8 {[%clk 0:05:39.8]} 45. Rh7 {[%clk 0:00:31.1]} 45... Nc6 {[%clk 0:05:30.7]}
46. Bxc6 {[%clk 0:00:24.8]} 46... Kxc6 {[%clk 0:05:32]} 47. Rf7 {[%clk
0:00:25.1]} 47... e5 {[%clk 0:05:24.5]} 48. Kd3 {[%clk 0:00:26.1]} 48... Kb6
{[%clk 0:05:22.4]} 49. Ke4 {[%clk 0:00:20.9]} 49... Rxa7 {[%clk 0:05:21.2]} 50.
Rf6+ {[%clk 0:00:22.1]} 50... Kb5 {[%clk 0:05:19.6]} 51. Kxe5 {[%clk 0:00:23.3]}
51... Ra2 {[%clk 0:05:18.1]} 52. Kxf4 {[%clk 0:00:21.5]} 52... Rxb2 {[%clk
0:05:18]} 53. Ke3 {[%clk 0:00:22.7]} 53... Kc4 {[%clk 0:05:11.3]} 54. Rf8 {[%clk
0:00:21]} 54... Kc3 {[%clk 0:05:08.7]} 55. Rf3 {[%clk 0:00:16.8]} 55... c4
{[%clk 0:05:06.2]} 56. Ke4+ {[%clk 0:00:18.1]} 56... Kb4 {[%clk 0:05:05.7]} 57.
Kd4 {[%clk 0:00:19.3]} 57... Rd2+ {[%clk 0:05:06.2]} 58. Ke4 {[%clk 0:00:18]}
58... c3 {[%clk 0:05:03.4]} 59. Rf8 {[%clk 0:00:17.6]} 59... Kb3 {[%clk
0:05:02.2]} 0-1

[Event "GrandPrix_30.05"]
[Site "Chess.com"]
[Date "2020.05.30"]
[Round "2"]
[White "Funo09"]
[Black "GMStefanova"]
[Result "1-0"]
[WhiteElo "2670"]
[BlackElo "2322"]
[TimeControl "600+2"]
[EndTime "8:50:59 PDT"]
[Termination "Funo09 won by resignation"]

1. e4 {[%clk 0:10:01.9]} 1... c6 {[%clk 0:09:59.3]} 2. Nc3 {[%clk 0:10:01.5]}
2... d5 {[%clk 0:09:59.6]} 3. Nf3 {[%clk 0:10:03.1]} 3... Bg4 {[%clk 0:10:00]}
4. h3 {[%clk 0:10:04.3]} 4... Bxf3 {[%clk 0:10:01]} 5. gxf3 {[%clk 0:10:06.2]}
5... Nf6 {[%clk 0:09:26.3]} 6. d4 {[%clk 0:09:53.4]} 6... e6 {[%clk 0:09:24.3]}
7. Rg1 {[%clk 0:08:31.9]} 7... g6 {[%clk 0:08:55.2]} 8. Bg5 {[%clk 0:07:54.5]}
8... h6 {[%clk 0:08:18]} 9. Be3 {[%clk 0:06:13.9]} 9... Bb4 {[%clk 0:07:42.8]}
10. Qd3 {[%clk 0:06:04.4]} 10... Qa5 {[%clk 0:07:22.2]} 11. Bd2 {[%clk
0:05:35.3]} 11... Nbd7 {[%clk 0:07:02.6]} 12. a3 {[%clk 0:04:52.1]} 12... O-O-O
{[%clk 0:06:50.6]} 13. O-O-O {[%clk 0:04:00.1]} 13... Bxc3 {[%clk 0:06:41.9]}
14. Bxc3 {[%clk 0:04:02]} 14... Qc7 {[%clk 0:06:40]} 15. Qe3 {[%clk 0:03:39.6]}
15... Nh5 {[%clk 0:06:15.3]} 16. Kb1 {[%clk 0:03:32.1]} 16... g5 {[%clk
0:06:02.3]} 17. h4 {[%clk 0:02:36.9]} 17... f6 {[%clk 0:05:27.9]} 18. e5 {[%clk
0:01:53.2]} 18... fxe5 {[%clk 0:05:09]} 19. hxg5 {[%clk 0:01:48.6]} 19... hxg5
{[%clk 0:04:24.8]} 20. dxe5 {[%clk 0:01:18.2]} 20... c5 {[%clk 0:04:18]} 21.
Qxg5 {[%clk 0:01:19.1]} 21... d4 {[%clk 0:04:13.9]} 22. Bd2 {[%clk 0:01:20.4]}
22... Nxe5 {[%clk 0:03:55.6]} 23. Be2 {[%clk 0:01:20.4]} 23... d3 {[%clk
0:02:40.2]} 24. cxd3 {[%clk 0:01:20.9]} 24... Nxd3 {[%clk 0:02:37.8]} 25. Bxd3
{[%clk 0:01:08.6]} 25... Rxd3 {[%clk 0:02:34.9]} 26. Bc3 {[%clk 0:01:10.1]}
26... Rxc3 {[%clk 0:01:55.2]} 27. Qg8+ {[%clk 0:01:10.4]} 1-0

[Event "GrandPrix_30.05"]
[Site "Chess.com"]
[Date "2020.05.30"]
[Round "2"]
[White "kotmizer"]
[Black "temus_galaktionov"]
[Result "0-1"]
[WhiteElo "2279"]
[BlackElo "2642"]
[TimeControl "600+2"]
[EndTime "8:51:02 PDT"]
[Termination "temus_galaktionov won by resignation"]

1. e4 {[%clk 0:10:01.9]} 1... c6 {[%clk 0:10:01.9]} 2. c4 {[%clk 0:10:02.1]}
2... g6 {[%clk 0:10:03.8]} 3. d4 {[%clk 0:10:02.2]} 3... Bg7 {[%clk 0:10:05.7]}
4. Nc3 {[%clk 0:10:02.7]} 4... d6 {[%clk 0:10:07]} 5. f4 {[%clk 0:10:03.6]} 5...
Nd7 {[%clk 0:10:08.4]} 6. Nf3 {[%clk 0:10:04.1]} 6... e5 {[%clk 0:10:10.3]} 7.
Be3 {[%clk 0:10:04.2]} 7... Ngf6 {[%clk 0:10:10.4]} 8. h3 {[%clk 0:09:39.6]}
8... O-O {[%clk 0:10:07.7]} 9. fxe5 {[%clk 0:08:55.2]} 9... dxe5 {[%clk
0:10:09.6]} 10. d5 {[%clk 0:08:46]} 10... Nh5 {[%clk 0:09:59]} 11. Bf2 {[%clk
0:08:24.2]} 11... f5 {[%clk 0:09:10.5]} 12. Qc2 {[%clk 0:07:41.4]} 12... Bh6
{[%clk 0:07:41.6]} 13. exf5 {[%clk 0:06:48.5]} 13... gxf5 {[%clk 0:07:43.5]} 14.
g4 {[%clk 0:06:41.2]} 14... Nf4 {[%clk 0:07:15.3]} 15. gxf5 {[%clk 0:06:41]}
15... cxd5 {[%clk 0:07:09.6]} 16. cxd5 {[%clk 0:06:34.2]} 16... Nb6 {[%clk
0:07:10.4]} 17. Rg1+ {[%clk 0:06:08.4]} 17... Kh8 {[%clk 0:07:09.5]} 18. Qe4
{[%clk 0:06:06.1]} 18... Qf6 {[%clk 0:05:10.3]} 19. Nxe5 {[%clk 0:05:02.5]}
19... Bxf5 {[%clk 0:04:59.5]} 20. Bd4 {[%clk 0:04:37.3]} 20... Bxe4 {[%clk
0:04:21.8]} 21. Nxe4 {[%clk 0:04:37.5]} 21... Qg7 {[%clk 0:01:44.7]} 22. Rxg7
{[%clk 0:02:09.8]} 22... Bxg7 {[%clk 0:01:46.6]} 23. Nc5 {[%clk 0:01:34.8]}
23... Rae8 {[%clk 0:01:39.4]} 24. O-O-O {[%clk 0:01:17.3]} 24... Bxe5 {[%clk
0:01:38.5]} 25. Bg1 {[%clk 0:01:16.4]} 25... Nbxd5 {[%clk 0:01:30.3]} 26. Nxb7
{[%clk 0:01:16.8]} 26... Rb8 {[%clk 0:01:27.7]} 27. Ba6 {[%clk 0:01:10.7]} 27...
Nb4 {[%clk 0:01:23.7]} 0-1